bitfinex-derivatives/quotes_SOLF0:USTF0_20251020
["timestamp","ask_amount","ask_price","bid_price","bid_amount"]
[1760986414850,4.7823,188.16,188.11,4.94453033]
[1760986415055,2.93,188.15,188.12,9.31446011]
[1760986415258,2.93,188.15,188.13,9.31704089]
[1760986415457,2.93,188.15,188.14,4.24927304]
[1760986416056,7.7121,188.17,188.14,4.24927304]
[1760986416358,7.7121,188.17,188.15,4.24927304]
[1760986416559,7.7121,188.17,188.16,4.24927304]
[1760986417360,2.93,188.16,188.12,2.82]
[1760986417555,2.93,188.16,188.13,12.1427939]
[1760986417766,2.93,188.16,188.14,4.25318563]
[1760986418057,2.93,188.16,188.13,2.82]
[1760986418058,2.93,188.16,188.15,4.25318563]
[1760986420262,2.93,188.16,188.15,9.32601519]
[1760986423155,2.93,188.16,188.15,13.64188165]
[1760986423655,47.15,188.16,188.15,13.64188165]
[1760986424356,2.93,188.16,188.15,13.64188165]
[1760986424563,47.15,188.16,188.15,13.64188165]
[1760986425662,44.22,188.16,188.15,16.46188165]
[1760986426367,44.22,188.17,188.16,2.82]
[1760986426575,44.22,188.17,188.16,16.46188165]
[1760986428663,44.22,188.17,188.16,13.64188165]
[1760986429659,7.7117,188.18,188.16,13.64188165]
[1760986429861,7.7117,188.18,188.17,13.64188165]
[1760986430164,25.8517,188.18,188.17,13.64188165]
[1760986430764,2.93,188.2,188.17,16.46188165]
[1760986430966,44.22,188.19,188.18,13.64188165]
[1760986431165,2.93,188.2,188.18,13.64188165]
[1760986431368,2.93,188.2,188.17,2.82]
[1760986431369,4.781,188.21,188.19,16.46188165]
[1760986431562,49.001,188.21,188.2,13.64188165]
[1760986432262,49.001,188.21,188.2,16.46188165]
[1760986432871,7.711,188.21,188.2,13.64188165]
[1760986433065,51.931,188.21,188.2,13.64188165]
[1760986433670,49.001,188.21,188.2,13.64188165]
[1760986435171,7.711,188.21,188.2,13.64188165]
[1760986435368,51.931,188.21,188.2,13.64188165]
[1760986435665,51.931,188.21,188.2,9.32601519]
[1760986435867,51.931,188.21,187.92,9.85362819]
[1760986435868,2.93,188.02,187.92,9.85362819]
[1760986436066,2.93,187.97,187.89,2.82]
[1760986436377,3.21015406,187.93,187.89,2.82]
[1760986436671,3.21015406,187.9,187.74,2.82]
[1760986436862,36.87932164,187.89,187.74,2.82]
[1760986437057,3.21015406,187.87,187.74,2.82]
[1760986437263,3.21015406,187.87,187.72,3.21015406]
[1760986437264,11.43304509,187.86,187.78,2.82]
[1760986437464,11.43304509,187.85,187.78,2.82]
[1760986437666,5.64605639,187.84,187.81,2.84]
[1760986437868,2.87,188.01,187.82,1.09]
[1760986438068,32.02481124,187.99,187.85,1.09]
[1760986438273,9.26481124,187.98,187.85,1.09]
[1760986438473,2.87,187.96,187.87,1.09]
[1760986438772,9.26481124,187.95,187.87,1.09]
[1760986438972,9.26481124,187.94,187.87,1.09]
[1760986439172,9.26481124,187.93,187.87,1.09]
[1760986439363,8.10309922,187.92,187.87,1.09]
[1760986439566,5.23309922,187.91,187.87,1.09]
[1760986439776,5.23309922,187.9,187.87,1.09]
[1760986439970,5.23309922,187.89,187.82,62.0]
[1760986440174,5.23309922,187.88,187.83,1.09]
[1760986440369,5.23309922,187.87,187.83,1.09]
[1760986440570,4.02357393,187.91,187.83,1.09]
[1760986440769,2.87,187.92,187.83,1.09]
[1760986440770,5.39713717,187.9,187.83,1.09]
[1760986440970,10.18643717,187.89,187.83,1.09]
[1760986441168,5.39713717,187.88,187.83,1.09]
[1760986441367,4.7893,187.89,187.83,1.09]
[1760986441768,8.36783889,187.97,187.83,1.09]
[1760986442070,57.01458091,187.96,187.84,1.09]
[1760986442272,9.32458091,187.95,187.84,1.09]
[1760986442471,5.30632217,187.94,187.84,1.09]
[1760986442674,5.30632217,187.93,187.84,1.09]
[1760986442870,5.30632217,187.92,187.86,1.09]
[1760986443068,5.30632217,187.91,187.86,1.09]
[1760986443264,4.788,187.94,187.86,1.09]
[1760986443473,5.29768008,187.93,187.86,1.09]
[1760986443674,5.29768008,187.92,187.86,1.09]
[1760986443980,5.29768008,187.91,187.86,1.09]
[1760986444176,4.788,187.94,187.86,1.09]
[1760986444378,5.29654653,187.93,187.86,1.09]
[1760986444676,5.29654653,187.92,187.86,1.09]
[1760986444877,5.29654653,187.91,187.86,1.09]
[1760986445079,7.658,187.94,187.86,1.09]
[1760986445272,5.29301095,187.93,187.86,1.09]
[1760986445471,5.29301095,187.92,187.86,1.09]
[1760986445674,5.29301095,187.91,187.86,1.09]
[1760986445875,7.658,187.94,187.86,1.09]
[1760986446070,5.28988625,187.93,187.86,1.09]
[1760986446382,12.94808625,187.93,187.86,1.09]
[1760986446580,7.6582,187.93,187.86,1.09]
[1760986446772,7.96157093,187.92,187.86,1.09]
[1760986446972,5.09157093,187.91,187.86,1.09]
[1760986447178,7.96157093,187.9,187.84,4.7901]
[1760986447370,4.7874,187.96,187.85,1.09]
[1760986447681,5.34020793,187.95,187.85,1.09]
[1760986447880,5.34020793,187.94,187.85,1.09]
[1760986448085,5.34020793,187.93,187.85,1.09]
[1760986448383,5.34020793,187.92,187.85,1.09]
[1760986448678,5.34020793,187.91,187.87,4.7894]
[1760986448882,4.7879,187.94,187.87,4.7894]
[1760986448883,5.34020793,187.9,187.88,1.09]
[1760986449075,4.7879,187.94,187.88,1.09]
[1760986449373,8.2061772,187.93,187.88,1.09]
[1760986449578,5.3361772,187.92,187.88,1.09]
[1760986449781,5.3361772,187.91,187.88,1.09]
[1760986449979,5.3361772,187.9,187.88,1.09]
[1760986450181,2.87,187.93,187.88,1.09]
[1760986450382,5.33526686,187.92,187.88,1.09]
[1760986450578,5.33526686,187.91,187.9,4.7888]
[1760986450785,5.33526686,187.91,187.9,1.09]
[1760986451371,5.33526686,187.96,187.9,1.09]
[1760986451579,8.20526686,187.95,187.9,1.09]
[1760986451777,2.87,187.95,187.9,1.09]
[1760986452887,2.87,187.95,187.89,4.7888]
[1760986456090,2.87,187.95,187.89,5.8788]
[1760986457896,4.7877,187.95,187.89,1.09]
[1760986458096,2.85,187.94,187.87,4.7895]
[1760986458496,2.85,187.94,187.87,5.8795]
[1760986459093,7.6379,187.94,187.87,5.8795]
[1760986460301,4.7879,187.94,187.87,5.8795]
[1760986460502,2.85,187.93,187.87,5.8795]
[1760986461004,2.85,187.93,187.87,1.09]
[1760986461198,7.04313819,187.93,187.87,1.09]
[1760986462499,4.19313819,187.92,187.87,1.09]
[1760986462901,2.85,187.92,187.87,1.09]
[1760986464002,2.85,187.92,187.87,5.8793]
[1760986464206,2.85,187.92,187.88,1.09]
[1760986466111,2.85,187.92,187.85,1.09]
[1760986466599,2.85,187.92,187.86,4.7896]
[1760986466801,2.85,187.92,187.86,5.8796]
[1760986467408,7.00038796,187.92,187.86,5.8796]
[1760986468105,2.84,187.91,187.86,4.7896]
[1760986468305,6.99076195,187.91,187.84,9.08814652]
[1760986469014,2.84,187.91,187.84,9.08814652]
[1760986469513,2.84,187.91,187.85,4.7899]
[1760986470913,11.72398117,187.91,187.84,1.08]
[1760986471110,7.6285,187.91,187.84,1.08]
[1760986471301,2.84,187.93,187.84,1.08]
[1760986471501,2.84,187.91,187.84,1.08]
[1760986471701,7.72377403,187.91,187.84,1.08]
[1760986471915,2.84,187.91,187.84,1.08]
[1760986472316,4.09884908,187.9,187.84,1.08]
[1760986472805,6.93884908,187.9,187.84,1.08]
[1760986473005,7.6288,187.9,187.84,5.8702]
[1760986474016,12.51628063,187.9,187.84,5.8702]
[1760986474212,4.10336911,187.89,187.84,5.8702]
[1760986474415,2.84,187.89,187.85,1.08]
[1760986476107,2.84,187.89,187.86,1.08]
[1760986476312,2.84,187.94,187.87,1.08]
[1760986476509,11.74268942,187.93,187.87,1.08]
[1760986476720,2.84,187.91,187.87,1.08]
[1760986477019,4.11182763,187.9,187.87,1.08]
[1760986477214,4.11838919,187.89,187.87,1.08]
[1760986477421,2.84,187.91,187.87,1.08]
[1760986477616,4.11827218,187.9,187.87,1.08]
[1760986477814,4.11827218,187.89,187.87,5.8694]
[1760986478014,2.84,187.97,187.89,1.08]
[1760986478321,2.84,187.95,187.91,1.08]
[1760986478516,11.66378064,187.94,187.9,7.92881616]
[1760986478720,11.66378064,187.93,187.9,7.92881616]
[1760986478923,4.04247261,187.92,187.9,4.7887]
[1760986479215,4.00126946,187.91,187.9,4.7887]
[1760986479416,8.76380276,187.91,187.9,4.7887]
[1760986482017,8.76380276,187.91,187.9,5.8687]
[1760986482827,4.00126946,187.91,187.9,5.8687]
[1760986486331,3.94241008,187.91,187.9,5.8687]
[1760986487630,3.94241008,187.91,187.88,7.92921616]
[1760986487828,2.84,187.93,187.88,2.06011616]
[1760986488019,3.94262487,187.92,187.89,1.08]
[1760986488221,3.94262487,187.91,187.89,1.08]
[1760986488419,2.84,187.93,187.89,1.08]
[1760986488626,3.94231308,187.92,187.89,1.08]
[1760986488830,3.94231308,187.91,187.89,1.08]
[1760986489029,2.84,187.93,187.89,5.8688]
[1760986489335,3.94304672,187.92,187.89,5.8688]
[1760986489538,6.72456464,187.91,187.85,7.93001616]
[1760986489831,2.84,187.89,187.86,1.08]
[1760986490236,12.15752093,187.92,187.86,5.8697]
[1760986490438,6.72412545,187.91,187.86,5.8697]
[1760986490731,6.72412545,187.9,187.86,5.8697]
[1760986490934,3.88412545,187.89,187.86,5.8697]
[1760986491230,2.84,187.89,187.86,5.8697]
[1760986491431,2.06011616,187.94,187.86,4.7897]
[1760986491637,4.52953123,187.96,187.9,1.08]
[1760986491840,4.52953123,187.95,187.92,1.08]
[1760986492130,4.52953123,187.97,187.92,1.08]
[1760986492326,7.36953123,187.96,187.92,1.08]
[1760986492528,2.84,187.96,187.92,1.08]
[1760986492725,4.90011616,188.0,187.92,1.08]
[1760986492927,4.52974244,187.99,187.92,1.08]
[1760986493126,4.52974244,187.98,187.92,1.08]
[1760986493428,7.36974244,187.97,187.92,1.08]
[1760986493628,2.84,187.97,187.92,1.08]
[1760986494626,2.84,187.97,187.93,1.08]
[1760986494826,4.52917174,187.98,187.93,1.08]
[1760986495027,2.84,188.0,187.94,1.08]
[1760986495228,2.84,187.98,187.94,1.08]
[1760986496528,2.84,187.97,187.94,1.08]
[1760986498235,4.52710808,187.99,187.95,2.06011616]
[1760986498435,7.34710808,188.01,187.96,1.08]
[1760986498737,2.82,188.01,187.96,1.08]
[1760986499431,2.82,188.0,187.96,1.08]
[1760986499931,2.06011616,187.99,187.9,2.06011616]
[1760986500239,2.82,187.97,187.9,1.08]
[1760986500538,2.82,187.97,187.91,4.7883]
[1760986500738,2.82,187.97,187.9,1.08]
[1760986501733,2.06011616,187.95,187.86,1.08]
[1760986501926,2.06011616,187.93,187.86,1.08]
[1760986502127,2.82,187.92,187.86,3.14011616]
[1760986502323,4.88011616,187.95,187.88,1.08]
[1760986502528,4.88011616,187.95,187.89,1.08]
[1760986504932,4.88011616,187.95,187.9,4.7885]
[1760986505131,2.82,187.94,187.9,4.7885]
[1760986506936,9.40177671,187.96,187.91,1.08]
[1760986507141,4.88011616,187.96,187.91,1.08]
[1760986508037,4.88011616,187.96,187.92,5.868]
[1760986510138,2.82,187.95,187.92,5.868]
[1760986510445,2.82,187.93,187.86,1.08]
[1760986510949,2.82,187.93,187.89,5.8689]
[1760986511444,2.82,187.93,187.89,1.08]
[1760986511740,2.06011616,187.94,187.89,1.08]
[1760986511945,2.82,187.93,187.89,1.08]
[1760986512949,2.82,187.93,187.9,4.7885]
[1760986513342,2.06011616,187.92,187.85,1.08]
[1760986513645,2.82,187.91,187.88,4.7891]
[1760986514243,2.82,187.91,187.88,5.8691]
[1760986515149,2.82,187.91,187.89,4.7889]
[1760986515450,2.77,187.93,187.89,4.7889]
[1760986517150,2.77,187.93,187.9,1.08]
[1760986517448,2.06011616,187.96,187.9,1.08]
[1760986517649,2.77,187.95,187.9,1.08]
[1760986517849,2.77,187.95,187.91,4.7883]
[1760986518746,2.77,188.0,187.92,1.08]
[1760986519050,2.77,188.0,187.94,1.08]
[1760986519551,2.77,187.99,187.95,4.7873]
[1760986520153,2.77,187.99,187.94,1.08]
[1760986520648,2.77,187.99,187.92,4.7881]
[1760986520951,2.77,187.98,187.92,4.7881]
[1760986521342,2.77,187.98,187.91,3.14011616]
[1760986521343,2.77,187.98,187.93,4.7878]
[1760986521550,2.77,187.98,187.92,1.08]
[1760986522643,2.77,187.98,187.91,2.06011616]
[1760986523044,2.77,187.98,187.94,4.7876]
[1760986523344,2.77,187.98,187.94,5.8676]
[1760986523545,2.77,188.01,187.97,1.08]
[1760986525153,15.66772581,188.05,187.95,2.06011616]
[1760986525154,4.95133956,188.08,187.98,1.08]
[1760986525452,2.77,188.05,187.98,1.08]
[1760986526342,4.7851,188.05,187.99,4.7864]
[1760986526547,2.77,188.04,187.99,4.7864]
[1760986528353,2.77,188.04,188.0,4.95038897]
[1760986528554,2.77,188.04,188.01,4.95038897]
[1760986528757,2.77,188.04,188.02,4.95038897]
[1760986528948,2.77,188.04,188.03,4.95038897]
[1760986540260,4.7843,188.08,188.04,1.08]
[1760986540466,4.7843,188.08,188.05,6.03038897]
[1760986540762,7.7243,188.08,188.06,4.95038897]
[1760986541064,7.7243,188.08,188.07,4.95038897]
[1760986547166,7.7243,188.08,188.07,4.93814374]
[1760986549366,4.7843,188.08,188.07,4.95784661]
[1760986550370,4.7838,188.1,188.08,1.08]
[1760986550565,2.94,188.1,188.03,1.08]
[1760986550764,2.94,188.1,188.05,1.08]
[1760986551061,2.94,188.1,188.07,1.08]
[1760986551373,2.94,188.1,188.08,4.95751633]
[1760986551574,4.784,188.09,188.07,1.08]
[1760986551873,4.784,188.09,188.02,7.99951034]
[1760986551874,2.94,188.11,188.03,1.08]
[1760986552058,2.94,188.11,188.04,4.95732633]
[1760986552261,2.94,188.1,188.05,4.95732633]
[1760986552464,2.94,188.1,188.06,4.95732633]
[1760986552765,2.94,188.1,188.07,4.95732633]
[1760986552967,2.94,188.07,188.03,1.08]
[1760986553166,2.94,188.07,188.04,4.95704114]
[1760986553367,2.94,188.07,188.05,4.95704114]
[1760986553570,2.94,188.07,188.06,4.95704114]
[1760986554274,2.94,188.11,188.06,4.95704114]
[1760986554473,2.94,188.11,188.02,1.08]
[1760986554661,2.94,188.11,188.03,6.03679902]
[1760986554867,4.7845,188.07,188.04,4.95679902]
[1760986555068,4.7845,188.07,188.05,6.03679902]
[1760986555374,7.7245,188.07,188.06,4.95679902]
[1760986557474,4.7845,188.07,188.06,4.95679902]
[1760986560468,7.5745,188.07,188.06,4.95679902]
[1760986562677,7.5745,188.07,188.03,1.08]
[1760986562878,7.5745,188.07,188.05,1.08]
[1760986563073,0.9255073,188.12,188.06,6.04533313]
[1760986563074,7.5741,188.09,188.06,6.04533313]
[1760986563278,2.79,188.11,188.08,1.08]
[1760986563477,2.79,188.11,188.09,6.04533313]
[1760986563775,2.79,188.11,188.1,4.96533313]
[1760986564179,2.79,188.14,188.1,4.96533313]
[1760986564384,2.79,188.14,188.11,6.04533313]
[1760986564571,2.79,188.14,188.12,4.96533313]
[1760986564777,4.95880164,188.22,188.14,1.08]
[1760986564976,2.79,188.24,188.15,6.04655543]
[1760986565178,7.5702,188.24,188.17,1.08]
[1760986565376,2.79,188.24,188.18,4.96655543]
[1760986565584,2.79,188.24,188.19,4.96655543]
[1760986565779,2.79,188.24,188.2,4.96655543]
[1760986565978,2.79,188.24,188.21,4.96655543]
[1760986566179,2.79,188.24,188.17,1.08]
[1760986566378,2.79,188.24,188.18,4.95478191]
[1760986566586,2.79,188.24,188.19,4.95478191]
[1760986566787,2.79,188.24,188.2,4.95478191]
[1760986566983,2.79,188.24,188.21,4.95478191]
[1760986567181,2.79,188.24,188.17,1.08]
[1760986567381,2.79,188.24,188.18,4.95008942]
[1760986567580,2.79,188.24,188.19,6.03008942]
[1760986567778,2.79,188.23,188.2,4.95008942]
[1760986568080,2.79,188.28,188.22,1.08]
[1760986568280,2.79,188.28,188.24,1.08]
[1760986568787,2.79,188.28,188.25,4.94066589]
[1760986568987,2.79,188.28,188.24,1.08]
[1760986570490,2.79,188.28,188.19,1.08]
[1760986570791,2.79,188.28,188.21,1.08]
[1760986570990,2.79,188.28,188.22,4.92871379]
[1760986571283,2.79,188.28,188.21,1.08]
[1760986571284,4.7794,188.27,188.24,1.08]
[1760986571485,2.79,188.28,188.24,1.08]
[1760986572288,7.5694,188.27,188.24,1.08]
[1760986574091,7.5694,188.27,188.2,1.08]
[1760986574392,7.5694,188.27,188.21,5.99557486]
[1760986574594,7.5694,188.27,188.23,1.08]
[1760986576393,7.4896,188.26,188.23,1.08]
[1760986576999,4.7799,188.25,188.2,1.07]
[1760986577293,2.71,188.25,188.17,7.99571034]
[1760986577484,2.71,188.25,188.18,5.97850656]
[1760986577688,7.4904,188.23,188.2,1.07]
[1760986578296,4.7807,188.22,188.2,1.07]
[1760986580801,2.71,188.23,188.2,1.07]
[1760986581098,2.71,188.23,188.17,1.07]
[1760986581291,2.71,188.23,188.19,1.07]
[1760986581690,7.4904,188.23,188.19,1.07]
[1760986585095,4.7804,188.23,188.19,1.07]
[1760986585301,2.71,188.22,188.19,1.07]
[1760986586709,4.7804,188.23,188.19,1.07]
[1760986587104,2.71,188.22,188.16,1.07]
[1760986587306,2.87,188.21,188.18,1.08]
[1760986587499,2.87,188.21,188.19,4.90799928]
[1760986587705,2.87,188.21,188.17,1.08]
[1760986587903,2.87,188.21,188.18,5.98860943]
[1760986588112,2.87,188.21,188.19,4.90860943]
[1760986588312,2.87,188.21,188.18,1.08]
[1760986588513,2.87,188.21,188.19,4.90877101]
[1760986588713,2.87,188.21,188.18,1.08]
[1760986588919,2.87,188.21,188.19,4.90846589]
[1760986589119,2.87,188.21,188.18,1.08]
[1760986589419,2.87,188.21,188.19,4.9089602]
[1760986589712,2.87,188.21,188.18,1.08]
[1760986589921,2.87,188.21,188.19,4.90895863]
[1760986590218,2.87,188.21,188.18,1.08]
[1760986590518,2.87,188.21,188.19,4.90995907]
[1760986590718,2.87,188.21,188.18,1.08]
[1760986590918,2.87,188.21,188.19,4.91000015]
[1760986591119,2.87,188.21,188.18,1.08]
[1760986591319,2.87,188.21,188.19,4.91089756]
[1760986591515,2.87,188.21,188.18,1.08]
[1760986591715,2.87,188.21,188.19,4.91090071]
[1760986591915,2.87,188.21,188.18,1.08]
[1760986592116,2.87,188.21,188.19,4.91090071]
[1760986592312,2.87,188.23,188.12,1.08]
[1760986592620,2.87,188.23,188.13,5.9946275]
[1760986592815,2.87,188.23,188.14,4.9146275]
[1760986593018,2.87,188.23,188.15,4.9146275]
[1760986593313,3.21401034,188.24,188.13,1.08]
[1760986593314,7.6517,188.18,188.14,1.08]
[1760986593520,7.6517,188.18,188.15,4.91566333]
[1760986593710,7.6517,188.18,188.14,1.08]
[1760986593907,7.6517,188.18,188.15,4.91566194]
[1760986594108,2.87,188.17,188.14,1.08]
[1760986594309,2.87,188.17,188.15,4.91678024]
[1760986594509,2.87,188.17,188.14,1.08]
[1760986594713,2.87,188.17,188.15,4.91761997]
[1760986594914,2.87,188.17,188.14,1.08]
[1760986595123,2.87,188.17,188.15,4.91761997]
[1760986595315,2.87,188.17,188.14,1.08]
[1760986595620,2.87,188.17,188.15,4.91910636]
[1760986595822,2.87,188.17,188.14,1.08]
[1760986596016,2.87,188.17,188.15,4.9188418]
[1760986596216,2.87,188.17,188.14,1.08]
[1760986596411,2.87,188.17,188.15,4.92016543]
[1760986596618,2.87,188.16,188.12,1.08]
[1760986596818,2.87,188.16,188.13,6.00076151]
[1760986597119,2.87,188.16,188.14,4.92076151]
[1760986597314,2.87,188.16,188.15,4.92076151]
[1760986608337,7.6515,188.19,188.16,1.08]
[1760986608631,2.87,188.18,188.17,4.92076151]
[1760986609631,2.87,188.23,188.17,4.92076151]
[1760986609832,2.87,188.23,188.19,1.08]
[1760986610030,2.87,188.23,188.2,6.97481699]
[1760986610332,2.87,188.23,188.21,4.92076151]
[1760986610520,2.87,188.23,188.22,4.92076151]
[1760986611030,7.6505,188.23,188.22,4.92076151]
[1760986621337,8.7105,188.23,188.22,6.151e-05]
[1760986621538,7.5518,188.17,188.14,2.05405548]
[1760986621740,2.77,188.24,188.17,1.08]
[1760986622934,4.7815,188.19,188.17,1.08]
[1760986623652,4.7815,188.19,188.18,2.05405548]
[1760986625035,4.781,188.21,188.18,3.13405548]
[1760986625239,7.551,188.21,188.2,2.05405548]
[1760986626140,4.781,188.21,188.2,2.05405548]
[1760986626345,2.77,188.24,188.2,2.05405548]
[1760986626346,4.7805,188.23,188.21,1.08]
[1760986626536,4.7805,188.23,188.22,2.05405548]
[1760986627843,7.5505,188.23,188.22,2.05405548]
[1760986628530,4.7807,188.22,188.16,4.91716648]
[1760986628735,2.77,188.22,188.2,2.05405548]
[1760986629730,2.77,188.25,188.18,2.05405548]
[1760986630943,4.7813,188.2,188.18,2.05405548]
[1760986631145,2.77,188.19,188.14,4.91716648]
[1760986631338,2.77,188.19,188.16,2.05405548]
[1760986632337,4.7816,188.18,188.16,2.05405548]
[1760986632938,22.75405548,188.24,188.13,4.96033855]
[1760986632939,2.77,188.16,188.14,2.05405548]
[1760986633544,2.77,188.16,188.15,5.12153338]
[1760986635040,4.7819,188.17,188.15,5.12153338]
[1760986635243,4.7819,188.17,188.16,5.12153338]
[1760986637047,7.5619,188.17,188.16,5.12153338]
[1760986642154,4.7819,188.17,188.16,5.12153338]
[1760986643555,7.5619,188.17,188.16,5.12153338]
[1760986645163,4.7819,188.17,188.16,5.12153338]
[1760986645657,4.7819,188.17,188.13,1.08]
[1760986645866,4.7819,188.17,188.15,1.08]
[1760986646059,4.7819,188.17,188.16,5.11803997]
[1760986647963,4.7815,188.19,188.17,1.08]
[1760986648160,7.7115,188.19,188.18,5.11803997]
[1760986651055,4.7815,188.19,188.18,5.11803997]
[1760986651964,7.7115,188.19,188.18,5.11803997]
[1760986662165,51.9915,188.19,188.18,5.11803997]
[1760986664075,7.7115,188.19,188.18,5.11803997]
[1760986664675,40.16,188.2,188.19,1.08]
[1760986664876,4.7809,188.21,188.2,1.08]
[1760986665071,4.7809,188.21,188.2,5.11803997]
[1760986665367,4.7809,188.21,188.2,9.11317937]
[1760986665574,4.7809,188.21,188.2,10.19317937]
[1760986665770,2.93,188.23,188.2,10.19317937]
[1760986666075,47.19,188.23,188.21,9.11317937]
[1760986666273,2.93,188.23,188.22,9.11317937]
[1760986666574,44.26,188.27,188.23,1.08]
[1760986666781,2.93,188.26,188.24,9.11317937]
[1760986666964,49.0395,188.26,188.25,5.11803997]
[1760986667165,2.93,188.3,188.26,1.08]
[1760986667369,44.26,188.29,188.27,6.19803997]
[1760986667564,44.26,188.29,188.28,5.11803997]
[1760986668273,47.19,188.29,188.28,5.11803997]
[1760986668968,2.93,188.29,188.28,5.11803997]
[1760986669178,47.19,188.29,188.28,5.11803997]
[1760986671070,47.19,188.29,188.24,1.08]
[1760986671276,47.19,188.29,188.26,1.08]
[1760986671477,47.19,188.29,188.27,5.1041978]
[1760986671773,47.19,188.29,188.28,5.1032915]
[1760986672181,2.93,188.29,188.28,5.1032915]
[1760986672381,47.19,188.29,188.28,5.1032915]
[1760986672581,47.19,188.29,188.28,9.10480873]
[1760986673484,47.19,188.29,188.28,5.1032915]
[1760986673781,2.93,188.31,188.29,1.08]
[1760986673980,4.7781,188.32,188.29,1.08]
[1760986674170,16.52,188.31,188.3,5.09611479]
[1760986674977,2.93,188.33,188.3,6.17611479]
[1760986675280,2.93,188.33,188.3,1.08]
[1760986679880,2.93,188.33,188.27,1.08]
[1760986680075,2.76,188.31,188.28,6.16447418]
[1760986680381,2.76,188.31,188.29,5.08447418]
[1760986680581,2.76,188.31,188.27,1.08]
[1760986680780,2.76,188.31,188.28,6.16420385]
[1760986680980,2.76,188.31,188.29,5.08420385]
[1760986681283,2.76,188.3,188.25,1.08]
[1760986681580,2.76,188.35,188.27,1.08]
[1760986681886,2.76,188.34,188.28,10.14713803]
[1760986682083,2.76,188.34,188.29,5.08176834]
[1760986682284,2.76,188.34,188.29,1.08]
[1760986682584,2.76,188.32,188.29,1.08]
[1760986683687,7.5382,188.32,188.26,1.08]
[1760986683886,2.76,188.31,188.27,10.14216051]
[1760986684084,2.76,188.31,188.28,5.0783164]
[1760986684283,2.76,188.31,188.24,1.08]
[1760986684484,2.76,188.31,188.25,9.06353442]
[1760986684686,2.76,188.31,188.26,6.15904143]
[1760986684987,2.76,188.31,188.26,1.08]
[1760986685686,7.5389,188.29,188.26,1.08]
[1760986685882,44.24,188.32,188.27,5.07908775]
[1760986686184,2.76,188.31,188.26,1.08]
[1760986686385,2.76,188.31,188.27,5.07882749]
[1760986686574,4.7789,188.29,188.26,1.08]
[1760986686774,2.76,188.29,188.26,1.08]
[1760986686986,2.76,188.29,188.22,1.08]
[1760986687186,2.76,188.27,188.23,6.16159045]
[1760986687378,2.76,188.27,188.24,5.08159045]
[1760986687586,2.76,188.27,188.2,1.08]
[1760986687787,2.76,188.27,188.21,10.14951242]
[1760986688082,15.92694696,188.36,188.19,1.08]
[1760986688083,2.76,188.24,188.19,1.08]
[1760986688386,2.76,188.24,188.2,10.15193047]
[1760986688588,2.76,188.24,188.21,9.07193047]
[1760986688788,2.76,188.24,188.22,5.08396692]
[1760986688987,2.76,188.24,188.2,1.08]
[1760986689191,2.76,188.24,188.21,5.08397056]
[1760986689484,2.76,188.24,188.22,5.08536821]
[1760986689690,2.76,188.24,188.2,1.08]